[Event "*** Titled Tuesday Blitz"]
[Site "Chess.com"]
[Date "2019.12.03"]
[Round "6"]
[White "MateSchmate"]
[Black "albano87"]
[Result "0-1"]
[WhiteElo "2298"]
[BlackElo "2099"]
[TimeControl "180+2"]
[EndTime "14:19:52 PST"]
[Termination "albano87 won by checkmate"]

1. e4 {[%clk 0:03:01.9]} 1... c5 {[%clk 0:03:00.2]} 2. Nf3 {[%clk 0:03:01.7]}
2... Nc6 {[%clk 0:03:00.3]} 3. d4 {[%clk 0:03:03.6]} 3... cxd4 {[%clk
0:03:01.6]} 4. Nxd4 {[%clk 0:03:05.5]} 4... Nf6 {[%clk 0:03:03.3]} 5. Nc3 {[%clk
0:03:06.1]} 5... d6 {[%clk 0:03:04.3]} 6. Bg5 {[%clk 0:03:06.6]} 6... Bd7 {[%clk
0:03:04.8]} 7. f4 {[%clk 0:03:00.7]} 7... h6 {[%clk 0:03:02.9]} 8. Bh4 {[%clk
0:02:58.9]} 8... Qb6 {[%clk 0:03:02.2]} 9. Nb3 {[%clk 0:02:38.5]} 9... Qe3+
{[%clk 0:02:21]} 10. Be2 {[%clk 0:02:38.4]} 10... Nxe4 {[%clk 0:02:00.7]} 11.
Nxe4 {[%clk 0:02:36.9]} 11... Qxe4 {[%clk 0:01:56.9]} 12. O-O {[%clk 0:02:38.2]}
12... g5 {[%clk 0:01:40.6]} 13. Bf3 {[%clk 0:02:37.8]} 13... Qe3+ {[%clk
0:01:40.8]} 14. Bf2 {[%clk 0:02:39.1]} 14... Qxf4 {[%clk 0:01:41.8]} 15. Nd4
{[%clk 0:02:33]} 15... Bg7 {[%clk 0:01:29.4]} 16. c3 {[%clk 0:02:26.5]} 16...
O-O {[%clk 0:01:20]} 17. g3 {[%clk 0:02:18.9]} 17... Qe5 {[%clk 0:01:16.5]} 18.
Re1 {[%clk 0:02:17]} 18... Qf6 {[%clk 0:01:17.5]} 19. Nxc6 {[%clk 0:02:14.9]}
19... Bxc6 {[%clk 0:01:17.2]} 20. Bxc6 {[%clk 0:02:16]} 20... bxc6 {[%clk
0:01:18]} 21. Bd4 {[%clk 0:02:17.2]} 21... e5 {[%clk 0:01:19.5]} 22. Be3 {[%clk
0:02:18.6]} 22... Qe6 {[%clk 0:01:19.8]} 23. Qf3 {[%clk 0:02:19]} 23... d5
{[%clk 0:01:19.2]} 24. Bc5 {[%clk 0:02:19.9]} 24... f5 {[%clk 0:01:13]} 25. Bxf8
{[%clk 0:02:19.6]} 25... Rxf8 {[%clk 0:01:14.3]} 26. Rad1 {[%clk 0:02:20.4]}
26... e4 {[%clk 0:01:13.7]} 27. Qh5 {[%clk 0:02:21.6]} 27... f4 {[%clk
0:01:14.6]} 28. gxf4 {[%clk 0:02:22.4]} 28... gxf4 {[%clk 0:01:15.7]} 29. Kh1
{[%clk 0:02:23.9]} 29... f3 {[%clk 0:01:16.8]} 30. Rg1 {[%clk 0:02:24.9]} 30...
e3 {[%clk 0:01:11.8]} 31. Rg6 {[%clk 0:02:25]} 31... Qe4 {[%clk 0:01:12.3]} 32.
Rxg7+ {[%clk 0:02:23.2]} 32... Kxg7 {[%clk 0:01:10.9]} 33. Rg1+ {[%clk
0:02:24.8]} 33... Kh7 {[%clk 0:01:11.3]} 34. Rg4 {[%clk 0:02:22.4]} 34... f2+
{[%clk 0:00:59.5]} 35. Rxe4 {[%clk 0:02:23.3]} 35... f1=Q# {[%clk 0:00:59.4]}
0-1

[Event "*** Titled Tuesday Blitz"]
[Site "Chess.com"]
[Date "2019.12.03"]
[Round "6"]
[White "Elshan1985"]
[Black "SCIM"]
[Result "1-0"]
[WhiteElo "2737"]
[BlackElo "2516"]
[TimeControl "180+2"]
[EndTime "14:19:59 PST"]
[Termination "Elshan1985 won by resignation"]

1. c4 {[%clk 0:03:01.9]} 1... g6 {[%clk 0:02:41.9]} 2. Nc3 {[%clk 0:02:57.9]}
2... c5 {[%clk 0:02:36.9]} 3. Nf3 {[%clk 0:02:57.7]} 3... Nc6 {[%clk 0:02:37]}
4. e3 {[%clk 0:02:58.9]} 4... Bg7 {[%clk 0:02:37.5]} 5. d4 {[%clk 0:03:00.1]}
5... cxd4 {[%clk 0:02:38.4]} 6. exd4 {[%clk 0:03:02]} 6... Nf6 {[%clk
0:02:38.9]} 7. d5 {[%clk 0:03:03.3]} 7... Nb8 {[%clk 0:02:39.3]} 8. Be3 {[%clk
0:03:03.9]} 8... d6 {[%clk 0:02:36.7]} 9. h3 {[%clk 0:03:04.8]} 9... O-O {[%clk
0:02:36.5]} 10. Bd3 {[%clk 0:03:05.7]} 10... Nbd7 {[%clk 0:02:33.5]} 11. O-O
{[%clk 0:03:06.6]} 11... Ne5 {[%clk 0:02:27.5]} 12. Nxe5 {[%clk 0:03:05.2]}
12... dxe5 {[%clk 0:02:29.4]} 13. Qb3 {[%clk 0:03:00.6]} 13... b6 {[%clk
0:02:25.2]} 14. Rfd1 {[%clk 0:03:00.6]} 14... Bd7 {[%clk 0:02:14.8]} 15. a4
{[%clk 0:03:00.9]} 15... Rc8 {[%clk 0:02:10.9]} 16. a5 {[%clk 0:03:01.2]} 16...
bxa5 {[%clk 0:01:47.9]} 17. Qa3 {[%clk 0:02:57.7]} 17... e4 {[%clk 0:01:44.8]}
18. Bf1 {[%clk 0:02:57.8]} 18... Ne8 {[%clk 0:01:29.5]} 19. Nxe4 {[%clk
0:02:55.3]} 19... Rb8 {[%clk 0:01:26.4]} 20. Qxa5 {[%clk 0:02:53.1]} 20... Qxa5
{[%clk 0:01:13.9]} 21. Rxa5 {[%clk 0:02:55]} 21... Bxb2 {[%clk 0:01:11.5]} 22.
Rxa7 {[%clk 0:02:55.9]} 22... Bf5 {[%clk 0:01:12.1]} 23. Rxe7 {[%clk 0:02:54.5]}
23... Nf6 {[%clk 0:00:56.9]} 24. Nxf6+ {[%clk 0:02:54]} 24... Bxf6 {[%clk
0:00:56.8]} 25. Ra7 {[%clk 0:02:54]} 25... Bc2 {[%clk 0:00:50.9]} 26. Rc1 {[%clk
0:02:54.2]} 26... Be4 {[%clk 0:00:52.3]} 27. d6 {[%clk 0:02:51.5]} 27... Rfd8
{[%clk 0:00:44.1]} 28. c5 {[%clk 0:02:52.6]} 28... Bc6 {[%clk 0:00:44.2]} 29.
Bc4 {[%clk 0:02:51.4]} 29... Rd7 {[%clk 0:00:40.6]} 30. Rxd7 {[%clk 0:02:50.2]}
30... Bxd7 {[%clk 0:00:42.5]} 31. Bd5 {[%clk 0:02:51.1]} 31... Bb2 {[%clk
0:00:41.7]} 32. Rd1 {[%clk 0:02:39.1]} 32... Ba4 {[%clk 0:00:40.9]} 33. Rb1
{[%clk 0:02:33.1]} 33... Bc2 {[%clk 0:00:40.3]} 34. Rxb2 {[%clk 0:02:34.3]}
34... Rxb2 {[%clk 0:00:38.6]} 35. d7 {[%clk 0:02:35.2]} 35... Rb8 {[%clk
0:00:34.6]} 36. Bg5 {[%clk 0:02:33]} 1-0

[Event "*** Titled Tuesday Blitz"]
[Site "Chess.com"]
[Date "2019.12.03"]
[Round "6"]
[White "vugarrasulov"]
[Black "Bigfish1995"]
[Result "0-1"]
[WhiteElo "2787"]
[BlackElo "2997"]
[TimeControl "180+2"]
[EndTime "14:20:26 PST"]
[Termination "Bigfish1995 won by checkmate"]

1. e4 {[%clk 0:03:01.9]} 1... e5 {[%clk 0:03:00.9]} 2. Nf3 {[%clk 0:03:02.5]}
2... Nc6 {[%clk 0:03:02.1]} 3. Bb5 {[%clk 0:03:04]} 3... a6 {[%clk 0:03:00.9]}
4. Ba4 {[%clk 0:03:05.4]} 4... Nf6 {[%clk 0:03:02]} 5. O-O {[%clk 0:03:06.8]}
5... b5 {[%clk 0:03:01.7]} 6. Bb3 {[%clk 0:03:07.5]} 6... Bc5 {[%clk 0:03:03.3]}
7. Nxe5 {[%clk 0:02:57.6]} 7... Nxe5 {[%clk 0:03:01.9]} 8. d4 {[%clk 0:02:59]}
8... Bxd4 {[%clk 0:03:02]} 9. Qxd4 {[%clk 0:03:00.9]} 9... d6 {[%clk 0:03:02.5]}
10. f4 {[%clk 0:03:02]} 10... Nc6 {[%clk 0:02:50.3]} 11. Qc3 {[%clk 0:03:01.6]}
11... Bb7 {[%clk 0:02:45.2]} 12. e5 {[%clk 0:02:54]} 12... Ne4 {[%clk
0:02:44.6]} 13. Qe3 {[%clk 0:02:40.4]} 13... Ne7 {[%clk 0:02:43.7]} 14. exd6
{[%clk 0:02:22.6]} 14... Nf5 {[%clk 0:02:35.8]} 15. Qd3 {[%clk 0:02:22.7]} 15...
Nfxd6 {[%clk 0:02:34.1]} 16. Nc3 {[%clk 0:02:12.3]} 16... O-O {[%clk 0:02:33.2]}
17. Nxe4 {[%clk 0:02:11.7]} 17... Bxe4 {[%clk 0:02:32]} 18. Qg3 {[%clk
0:02:08.3]} 18... c5 {[%clk 0:02:27.4]} 19. c3 {[%clk 0:02:07]} 19... Re8 {[%clk
0:02:23.8]} 20. Qf2 {[%clk 0:02:08.3]} 20... Bd3 {[%clk 0:02:18.4]} 21. Re1
{[%clk 0:02:07.8]} 21... Ne4 {[%clk 0:02:11]} 22. Qf3 {[%clk 0:02:07.6]} 22...
c4 {[%clk 0:02:08.6]} 23. Bd1 {[%clk 0:02:04.5]} 23... Nxc3 {[%clk 0:02:04.2]}
24. Be3 {[%clk 0:01:42.2]} 24... Nd5 {[%clk 0:01:55.2]} 25. Bf2 {[%clk
0:01:33.3]} 25... Qd6 {[%clk 0:01:50.3]} 26. g3 {[%clk 0:01:23.8]} 26... Rxe1+
{[%clk 0:01:48.7]} 27. Bxe1 {[%clk 0:01:25.7]} 27... Re8 {[%clk 0:01:49.5]} 28.
Bf2 {[%clk 0:01:20.6]} 28... h6 {[%clk 0:01:40.9]} 29. a4 {[%clk 0:01:19]} 29...
Qb4 {[%clk 0:01:38.7]} 30. Qxd5 {[%clk 0:00:51.3]} 30... Re1+ {[%clk 0:01:33.2]}
31. Bxe1 {[%clk 0:00:52.6]} 31... Qxe1+ {[%clk 0:01:33.6]} 32. Kg2 {[%clk
0:00:53.8]} 32... Qf1# {[%clk 0:01:34.6]} 0-1

[Event "*** Titled Tuesday Blitz"]
[Site "Chess.com"]
[Date "2019.12.03"]
[Round "6"]
[White "ferdipy"]
[Black "chesstatour"]
[Result "1-0"]
[WhiteElo "2191"]
[BlackElo "1949"]
[TimeControl "180+2"]
[EndTime "14:20:37 PST"]
[Termination "ferdipy won on time"]

1. e4 {[%clk 0:03:01.9]} 1... c6 {[%clk 0:02:57.1]} 2. d4 {[%clk 0:03:02.2]}
2... d5 {[%clk 0:02:52.2]} 3. exd5 {[%clk 0:03:04.1]} 3... cxd5 {[%clk
0:02:53.9]} 4. Bd3 {[%clk 0:03:05.8]} 4... Nc6 {[%clk 0:02:49.5]} 5. c3 {[%clk
0:03:07.7]} 5... Qc7 {[%clk 0:02:48.7]} 6. Nf3 {[%clk 0:03:07.9]} 6... Bg4
{[%clk 0:02:42.6]} 7. Bg5 {[%clk 0:03:09.2]} 7... e6 {[%clk 0:02:42.3]} 8. Nbd2
{[%clk 0:03:09.3]} 8... Bd6 {[%clk 0:02:42.1]} 9. Bh4 {[%clk 0:03:10.7]} 9...
Nge7 {[%clk 0:02:42.1]} 10. Bg3 {[%clk 0:03:11.3]} 10... O-O {[%clk 0:02:31.3]}
11. Qc2 {[%clk 0:03:10.1]} 11... h6 {[%clk 0:02:10]} 12. Ne5 {[%clk 0:03:03.3]}
12... Nxe5 {[%clk 0:01:53.3]} 13. dxe5 {[%clk 0:03:03.9]} 13... Bxe5 {[%clk
0:01:54]} 14. Nf3 {[%clk 0:02:59.7]} 14... Bxf3 {[%clk 0:01:50.8]} 15. gxf3
{[%clk 0:03:01.6]} 15... Rac8 {[%clk 0:01:27.2]} 16. Rc1 {[%clk 0:03:00.1]}
16... Bf4 {[%clk 0:01:21.5]} 17. Rd1 {[%clk 0:02:59.6]} 17... Nc6 {[%clk
0:01:19.6]} 18. Qe2 {[%clk 0:02:59.8]} 18... Qe5 {[%clk 0:01:01.7]} 19. Qxe5
{[%clk 0:02:48.7]} 19... Bxe5 {[%clk 0:01:01.6]} 20. f4 {[%clk 0:02:48.7]} 20...
Bf6 {[%clk 0:01:01.8]} 21. Ke2 {[%clk 0:02:46.9]} 21... Rfe8 {[%clk 0:00:52.7]}
22. Kf3 {[%clk 0:02:47.1]} 22... Na5 {[%clk 0:00:46.8]} 23. Rd2 {[%clk
0:02:29.5]} 23... Nc4 {[%clk 0:00:47.5]} 24. Re2 {[%clk 0:02:30.7]} 24... a6
{[%clk 0:00:39.2]} 25. Kg2 {[%clk 0:02:25.8]} 25... Rc6 {[%clk 0:00:17.9]} 26.
Rhe1 {[%clk 0:02:24.7]} 26... Rb6 {[%clk 0:00:17.7]} 27. b3 {[%clk 0:02:23.5]}
27... Na3 {[%clk 0:00:10]} 28. Rc1 {[%clk 0:02:23]} 28... Rc6 {[%clk 0:00:06.5]}
29. c4 {[%clk 0:02:20.8]} 29... dxc4 {[%clk 0:00:06.2]} 30. bxc4 {[%clk
0:02:22.2]} 30... Rec8 {[%clk 0:00:05.8]} 31. f5 {[%clk 0:02:23.6]} 31... Nxc4
{[%clk 0:00:04]} 32. fxe6 {[%clk 0:02:24.2]} 1-0

[Event "*** Titled Tuesday Blitz"]
[Site "Chess.com"]
[Date "2019.12.03"]
[Round "6"]
[White "Zq1"]
[Black "Sunrise777"]
[Result "1-0"]
[WhiteElo "2544"]
[BlackElo "2687"]
[TimeControl "180+2"]
[EndTime "14:20:41 PST"]
[Termination "Zq1 won by resignation"]

1. d4 {[%clk 0:03:01.9]} 1... Nf6 {[%clk 0:03:00.2]} 2. c4 {[%clk 0:03:02.5]}
2... c5 {[%clk 0:03:01.4]} 3. Nf3 {[%clk 0:03:02.9]} 3... cxd4 {[%clk
0:03:02.5]} 4. Nxd4 {[%clk 0:03:04]} 4... Nc6 {[%clk 0:03:04.4]} 5. Nc3 {[%clk
0:03:03.7]} 5... e6 {[%clk 0:03:01.8]} 6. a3 {[%clk 0:03:03.8]} 6... Bc5 {[%clk
0:03:01.3]} 7. Nb3 {[%clk 0:03:02.7]} 7... Be7 {[%clk 0:03:02.3]} 8. e4 {[%clk
0:03:01.4]} 8... d6 {[%clk 0:03:03.1]} 9. Be2 {[%clk 0:03:02]} 9... b6 {[%clk
0:03:04.3]} 10. O-O {[%clk 0:03:02.5]} 10... Bb7 {[%clk 0:03:05.6]} 11. Be3
{[%clk 0:03:03.4]} 11... O-O {[%clk 0:03:03.6]} 12. Rc1 {[%clk 0:03:03.4]} 12...
Rc8 {[%clk 0:02:59.8]} 13. f3 {[%clk 0:03:03.6]} 13... Ne5 {[%clk 0:02:56.1]}
14. Qd4 {[%clk 0:02:46]} 14... Nfd7 {[%clk 0:02:31.8]} 15. Nb5 {[%clk
0:02:42.8]} 15... Nc5 {[%clk 0:02:00.7]} 16. Nxc5 {[%clk 0:02:37.5]} 16... bxc5
{[%clk 0:02:01.1]} 17. Qd2 {[%clk 0:02:34.6]} 17... a6 {[%clk 0:01:50.9]} 18.
Nc3 {[%clk 0:02:31.5]} 18... Nc6 {[%clk 0:01:37.7]} 19. Rfd1 {[%clk 0:02:31.1]}
19... Qb6 {[%clk 0:01:15.3]} 20. b4 {[%clk 0:02:28.6]} 20... Rfd8 {[%clk
0:01:11.7]} 21. Na4 {[%clk 0:02:15.6]} 21... Qc7 {[%clk 0:01:10.3]} 22. Qe1
{[%clk 0:02:10]} 22... cxb4 {[%clk 0:01:03.3]} 23. axb4 {[%clk 0:02:10.2]} 23...
Nxb4 {[%clk 0:01:02.9]} 24. Qxb4 {[%clk 0:02:09.7]} 24... d5 {[%clk 0:01:01.8]}
25. Qb6 {[%clk 0:01:51.9]} 25... dxc4 {[%clk 0:00:46.8]} 26. Rxd8+ {[%clk
0:01:45.4]} 26... Bxd8 {[%clk 0:00:41.1]} 27. Qxc7 {[%clk 0:01:41.2]} 27... Rxc7
{[%clk 0:00:40.1]} 28. Bb6 {[%clk 0:01:39.6]} 28... Bg5 {[%clk 0:00:39.5]} 29.
Bxc7 {[%clk 0:01:26.4]} 1-0

[Event "*** Titled Tuesday Blitz"]
[Site "Chess.com"]
[Date "2019.12.03"]
[Round "6"]
[White "ChessWarrior7197"]
[Black "2nd_life"]
[Result "1-0"]
[WhiteElo "2910"]
[BlackElo "2476"]
[TimeControl "180+2"]
[EndTime "14:20:46 PST"]
[Termination "ChessWarrior7197 won by resignation"]

1. e4 {[%clk 0:03:01.9]} 1... e5 {[%clk 0:03:00.4]} 2. Nf3 {[%clk 0:03:02.9]}
2... Nc6 {[%clk 0:03:00.2]} 3. Bb5 {[%clk 0:03:04.1]} 3... a6 {[%clk 0:03:01.3]}
4. Ba4 {[%clk 0:03:05.3]} 4... Nf6 {[%clk 0:03:02.5]} 5. O-O {[%clk 0:03:06.9]}
5... Be7 {[%clk 0:03:03.7]} 6. Re1 {[%clk 0:03:08.2]} 6... b5 {[%clk 0:03:04.8]}
7. Bb3 {[%clk 0:03:09.8]} 7... d6 {[%clk 0:03:06.2]} 8. c3 {[%clk 0:03:11.2]}
8... O-O {[%clk 0:03:06.9]} 9. h3 {[%clk 0:03:12.8]} 9... Bb7 {[%clk 0:03:08]}
10. d4 {[%clk 0:03:14]} 10... Re8 {[%clk 0:03:08.9]} 11. Nbd2 {[%clk 0:03:15.1]}
11... Bf8 {[%clk 0:03:10]} 12. d5 {[%clk 0:03:16.2]} 12... Nb8 {[%clk
0:03:06.7]} 13. Nf1 {[%clk 0:03:17.3]} 13... h6 {[%clk 0:02:49.2]} 14. Ng3
{[%clk 0:03:11.9]} 14... c6 {[%clk 0:02:48.4]} 15. dxc6 {[%clk 0:03:12.3]} 15...
Bxc6 {[%clk 0:02:48.5]} 16. Nh4 {[%clk 0:03:13.1]} 16... d5 {[%clk 0:02:36.6]}
17. exd5 {[%clk 0:03:12.8]} 17... Bxd5 {[%clk 0:02:36.7]} 18. Nhf5 {[%clk
0:03:13.2]} 18... Bxb3 {[%clk 0:02:28.9]} 19. axb3 {[%clk 0:03:13.3]} 19... Qxd1
{[%clk 0:02:25.8]} 20. Rxd1 {[%clk 0:03:15.2]} 20... Nc6 {[%clk 0:02:26.9]} 21.
Be3 {[%clk 0:03:15.8]} 21... a5 {[%clk 0:02:11.7]} 22. Nd6 {[%clk 0:03:16.1]}
22... Reb8 {[%clk 0:02:02]} 23. Kf1 {[%clk 0:03:17.1]} 23... Ne8 {[%clk
0:01:37.3]} 24. Nxe8 {[%clk 0:03:14.1]} 24... Rxe8 {[%clk 0:01:37.6]} 25. Rd5
{[%clk 0:03:15.7]} 25... b4 {[%clk 0:01:23.3]} 26. c4 {[%clk 0:03:15.6]} 26...
g6 {[%clk 0:01:23.8]} 27. Ne4 {[%clk 0:03:16.1]} 27... Bg7 {[%clk 0:01:23.6]}
28. Nd6 {[%clk 0:03:14.3]} 28... Re7 {[%clk 0:01:09.8]} 29. Rad1 {[%clk
0:03:13.4]} 29... f5 {[%clk 0:01:08.2]} 30. Bc5 {[%clk 0:03:14.2]} 30... Re6
{[%clk 0:01:00]} 31. Nb5 {[%clk 0:03:14.8]} 31... e4 {[%clk 0:00:58.2]} 32. Nc7
{[%clk 0:03:15.7]} 32... Ree8 {[%clk 0:00:37]} 33. Nxa8 {[%clk 0:03:11.9]} 33...
Rxa8 {[%clk 0:00:37.2]} 34. Rd6 {[%clk 0:03:13.5]} 34... Rc8 {[%clk 0:00:33.7]}
35. Rxg6 {[%clk 0:03:05.6]} 35... Ne5 {[%clk 0:00:31.6]} 36. Rxg7+ {[%clk
0:03:05.4]} 36... Kxg7 {[%clk 0:00:32.5]} 37. Rd5 {[%clk 0:03:07.3]} 37... Nd3
{[%clk 0:00:26.6]} 38. Bd4+ {[%clk 0:03:08.4]} 38... Kg6 {[%clk 0:00:27.6]} 39.
Rd6+ {[%clk 0:03:09.1]} 39... Kg5 {[%clk 0:00:25.8]} 40. g3 {[%clk 0:03:10.1]}
40... f4 {[%clk 0:00:18.7]} 41. gxf4+ {[%clk 0:03:10.6]} 41... Nxf4 {[%clk
0:00:18.7]} 42. Be3 {[%clk 0:03:10.6]} 42... Kf5 {[%clk 0:00:18.6]} 43. Bxf4
{[%clk 0:03:05.5]} 43... Kxf4 {[%clk 0:00:19.6]} 44. Rxh6 {[%clk 0:03:06.4]}
44... a4 {[%clk 0:00:20]} 45. Rb6 {[%clk 0:03:04.4]} 45... axb3 {[%clk
0:00:11.6]} 46. Rxb4 {[%clk 0:03:05.1]} 46... Kf3 {[%clk 0:00:13]} 47. Rxb3+
{[%clk 0:03:06.1]} 47... Kf4 {[%clk 0:00:13.6]} 48. Rc3 {[%clk 0:03:07.6]} 1-0

[Event "*** Titled Tuesday Blitz"]
[Site "Chess.com"]
[Date "2019.12.03"]
[Round "6"]
[White "Fiona"]
[Black "1g41-0"]
[Result "0-1"]
[WhiteElo "2019"]
[BlackElo "2382"]
[TimeControl "180+2"]
[EndTime "14:20:49 PST"]
[Termination "1g41-0 won by resignation"]

1. e4 {[%clk 0:03:01.9]} 1... c5 {[%clk 0:02:59.1]} 2. Nc3 {[%clk 0:03:02.5]}
2... Nc6 {[%clk 0:02:59.9]} 3. f4 {[%clk 0:03:03.2]} 3... g6 {[%clk 0:03:01.3]}
4. Nf3 {[%clk 0:03:04.3]} 4... Bg7 {[%clk 0:03:03]} 5. Bb5 {[%clk 0:03:05.3]}
5... Nd4 {[%clk 0:03:04]} 6. O-O {[%clk 0:03:05.6]} 6... a6 {[%clk 0:03:05.6]}
7. Bd3 {[%clk 0:03:05.9]} 7... d6 {[%clk 0:03:06.4]} 8. Nxd4 {[%clk 0:03:06.1]}
8... cxd4 {[%clk 0:03:08.3]} 9. Ne2 {[%clk 0:03:06.5]} 9... Nf6 {[%clk
0:03:09.9]} 10. c3 {[%clk 0:03:06.7]} 10... dxc3 {[%clk 0:03:11.5]} 11. dxc3
{[%clk 0:03:07.9]} 11... O-O {[%clk 0:03:13.2]} 12. Qe1 {[%clk 0:03:06.7]} 12...
d5 {[%clk 0:03:12.4]} 13. e5 {[%clk 0:03:03.8]} 13... Ne4 {[%clk 0:03:13.7]} 14.
Nd4 {[%clk 0:02:56.5]} 14... Bf5 {[%clk 0:03:09.7]} 15. Nxf5 {[%clk 0:02:31.3]}
15... gxf5 {[%clk 0:03:11.6]} 16. Qh4 {[%clk 0:02:21.2]} 16... e6 {[%clk
0:03:12.2]} 17. Qh5 {[%clk 0:02:18.3]} 17... Qb6+ {[%clk 0:03:11.1]} 18. Kh1
{[%clk 0:02:04.2]} 18... Nf2+ {[%clk 0:03:10.3]} 19. Rxf2 {[%clk 0:02:03.3]}
19... Qxf2 {[%clk 0:03:12.2]} 20. Qd1 {[%clk 0:01:49.9]} 20... b5 {[%clk
0:03:01.3]} 21. Bd2 {[%clk 0:01:49.9]} 21... Rac8 {[%clk 0:03:01.8]} 22. Qc2
{[%clk 0:01:48.8]} 22... Rfd8 {[%clk 0:02:59.6]} 23. Rf1 {[%clk 0:01:48.8]}
23... Qc5 {[%clk 0:02:59.6]} 24. Qd1 {[%clk 0:01:44]} 24... d4 {[%clk 0:03:00]}
25. Rf3 {[%clk 0:01:20.6]} 25... dxc3 {[%clk 0:02:55.2]} 26. bxc3 {[%clk
0:01:11.7]} 26... Qd5 {[%clk 0:02:50]} 27. Rg3 {[%clk 0:00:50]} 27... Qxa2
{[%clk 0:02:12.1]} 28. h3 {[%clk 0:00:49.7]} 28... Rc7 {[%clk 0:01:57.6]} 29.
Qh5 {[%clk 0:00:40.5]} 29... Rxd3 {[%clk 0:01:58.3]} 30. Rxg7+ {[%clk
0:00:20.7]} 30... Kxg7 {[%clk 0:01:57.3]} 31. Qg5+ {[%clk 0:00:19.3]} 31... Kf8
{[%clk 0:01:57.3]} 32. Qh6+ {[%clk 0:00:20.7]} 32... Ke8 {[%clk 0:01:57.8]} 33.
Qg7 {[%clk 0:00:20.1]} 33... Rxd2 {[%clk 0:01:57.2]} 34. Qg8+ {[%clk 0:00:21.3]}
34... Ke7 {[%clk 0:01:58.8]} 35. Qg5+ {[%clk 0:00:22.4]} 35... Kd7 {[%clk
0:02:00.4]} 36. Qg8 {[%clk 0:00:22.3]} 36... Kc6 {[%clk 0:01:57.9]} 37. Qa8+
{[%clk 0:00:22.4]} 37... Kc5 {[%clk 0:01:58.4]} 0-1

[Event "*** Titled Tuesday Blitz"]
[Site "Chess.com"]
[Date "2019.12.03"]
[Round "6"]
[White "francyIM"]
[Black "Alexander_Moskalenko"]
[Result "1-0"]
[WhiteElo "2609"]
[BlackElo "2817"]
[TimeControl "180+2"]
[EndTime "14:20:54 PST"]
[Termination "francyIM won on time"]

1. d4 {[%clk 0:03:01.9]} 1... Nf6 {[%clk 0:03:00.8]} 2. c4 {[%clk 0:03:03.1]}
2... e6 {[%clk 0:03:02.7]} 3. Nc3 {[%clk 0:03:02.7]} 3... Bb4 {[%clk 0:03:03.7]}
4. f3 {[%clk 0:03:04.1]} 4... Nh5 {[%clk 0:03:02.5]} 5. Nh3 {[%clk 0:03:01.3]}
5... f5 {[%clk 0:03:03.5]} 6. Nf2 {[%clk 0:03:01.7]} 6... d6 {[%clk 0:03:00.1]}
7. e3 {[%clk 0:03:01.9]} 7... O-O {[%clk 0:03:00.6]} 8. Bd2 {[%clk 0:03:02.9]}
8... c5 {[%clk 0:03:01.1]} 9. a3 {[%clk 0:03:03.1]} 9... Bxc3 {[%clk 0:03:01.8]}
10. Bxc3 {[%clk 0:03:03.4]} 10... Nc6 {[%clk 0:03:03.7]} 11. dxc5 {[%clk
0:03:03.4]} 11... dxc5 {[%clk 0:03:04.6]} 12. Qxd8 {[%clk 0:03:04.1]} 12... Rxd8
{[%clk 0:03:06.5]} 13. Be2 {[%clk 0:03:01]} 13... b6 {[%clk 0:02:58.3]} 14. Rg1
{[%clk 0:03:01.2]} 14... Nf6 {[%clk 0:02:58.5]} 15. g4 {[%clk 0:03:02.1]} 15...
fxg4 {[%clk 0:02:59.3]} 16. Nxg4 {[%clk 0:03:02.4]} 16... Nxg4 {[%clk
0:03:00.3]} 17. Rxg4 {[%clk 0:03:04.2]} 17... g6 {[%clk 0:03:01.7]} 18. h4
{[%clk 0:03:00.2]} 18... e5 {[%clk 0:02:55.9]} 19. Rg5 {[%clk 0:03:01]} 19...
Nd4 {[%clk 0:02:57.5]} 20. exd4 {[%clk 0:02:59.8]} 20... exd4 {[%clk 0:02:53.6]}
21. Bd2 {[%clk 0:03:00.5]} 21... Re8 {[%clk 0:02:55.2]} 22. Kf2 {[%clk
0:03:00.2]} 22... Bf5 {[%clk 0:02:55]} 23. Rag1 {[%clk 0:03:01]} 23... Kf7
{[%clk 0:02:56.4]} 24. f4 {[%clk 0:02:58.2]} 24... a5 {[%clk 0:02:41.4]} 25. Bf3
{[%clk 0:02:55.2]} 25... Bd3 {[%clk 0:02:42.3]} 26. R1g3 {[%clk 0:02:45.9]}
26... Bxc4 {[%clk 0:02:41.1]} 27. b3 {[%clk 0:02:43.2]} 27... Bb5 {[%clk
0:02:39.1]} 28. a4 {[%clk 0:02:43.8]} 28... Ba6 {[%clk 0:02:40]} 29. h5 {[%clk
0:02:43]} 29... Rad8 {[%clk 0:02:16]} 30. hxg6+ {[%clk 0:02:43.4]} 30... hxg6
{[%clk 0:02:17.9]} 31. Rxg6 {[%clk 0:02:44.7]} 31... Bd3 {[%clk 0:02:18.5]} 32.
Rxb6 {[%clk 0:02:40.5]} 32... Rh8 {[%clk 0:02:12.9]} 33. Rb7+ {[%clk 0:02:35.6]}
33... Kf6 {[%clk 0:02:13.5]} 34. Rb6+ {[%clk 0:02:34.1]} 34... Kf7 {[%clk
0:02:14.3]} 35. Bg2 {[%clk 0:02:28.5]} 35... Bc2 {[%clk 0:02:12.5]} 36. Rg5
{[%clk 0:02:26.3]} 36... Rde8 {[%clk 0:02:12.2]} 37. Bd5+ {[%clk 0:02:25.1]}
37... Ke7 {[%clk 0:02:09.2]} 38. Rg7+ {[%clk 0:02:25.2]} 38... Kf8 {[%clk
0:01:11.1]} 39. Rf7+ {[%clk 0:02:25.5]} 1-0